Workbook

Sheet 100
A1: время (лет) (N) | F1: Доходность матожидания финансового результата через N лет | I1: Среднее значение доходности всех совершенных итераций
A2: 100 | D2: корень степени N | F2: =F4^(1/$A$2) -> 1.05 | H2: =H3^(1/$A$2) -> 1.039630463
C3: произведение | H3: =PRODUCT(H6:H106) -> 48.7415855
A4: 1.2 | B4: 0.9 | C4: сумма | D4: =SUM(D6:D106) -> 1.2676506e+30 | F4: =SUM(F6:F106) -> 131.5012578 | I4: =SUM(I6:I106) -> 1.039338
A5: Число случаев прироста на 20% | B5: Число случаев прироста на -10% | C5: Результат через N лет ( R) | D5: Случаев рез-та через 100 лет | E5: Вероятность такого исхода (P) | F5: R*P | H5: Средняя доходность за N лет в ЭТОМ исходе (i) | I5: P*i
A6: 0 | B6: =$A$2-A6 -> 100 | C6: =1*($A$4^A6)*($B$4^B6) -> 2.656139889e-05 | D6: =COMBIN($A$2,A6) -> 1 | E6: =D6/$D$4 -> 7.888609052e-31 | F6: =C6*E6 -> 2.095324917e-35 | H6: =C6^(1/$A$2) -> 0.9 | I6: =H6*E6 -> 7.099748147e-31
A7: 1 | B7: =$A$2-A7 -> 99 | C7: =1*($A$4^A7)*($B$4^B7) -> 3.541519852e-05 | D7: =COMBIN($A$2,A7) -> 100 | E7: =D7/$D$4 -> 7.888609052e-29 | F7: =C7*E7 -> 2.793766556e-33 | H7: =C7^(1/$A$2) -> 0.9025928665 | I7: =H7*E7 -> 7.120202257e-29
A8: 2 | B8: 98 | C8: =1*($A$4^A8)*($B$4^B8) -> 4.722026469e-05 | D8: 4950 | E8: 3.904861481e-27 | F8: 1.843885927e-31 | H8: 0.9051932029 | I8: 3.534654071e-27
A9: 3 | B9: 97 | C9: =1*($A$4^A9)*($B$4^B9) -> 6.296035292e-05 | D9: 161700 | E9: 1.275588084e-25 | F9: 8.031147593e-30 | H9: 0.9078010308 | I9: 1.157980177e-25
A10: 4 | B10: 96 | C10: =1*($A$4^A10)*($B$4^B10) -> 8.394713722e-05 | D10: 3921225 | E10: 3.093301103e-24 | F10: 2.596737722e-28 | H10: 0.9104163717 | I10: 2.816191967e-24
A11: 5 | B11: 95 | C11: =1*($A$4^A11)*($B$4^B11) -> 0.0001119295163 | D11: 75287520 | E11: 5.939138118e-23 | F11: 6.647648568e-27 | H11: 0.9130392474 | I11: 5.422666197e-23
A12: 6 | B12: 94 | C12: =1*($A$4^A12)*($B$4^B12) -> 0.0001492393551 | D12: 1192052400 | E12: 9.403635353e-22 | F12: 1.403392475e-25 | H12: 0.9156696794 | I12: 8.61062377e-22
A13: 7 | B13: 93 | C13: =1*($A$4^A13)*($B$4^B13) -> 0.0001989858068 | D13: 1.60075608e+10 | E13: 1.26277389e-20 | F13: 2.512740813e-24 | H13: 0.9183076897 | I13: 1.159614974e-20
A14: 8 | B14: 92 | C14: =1*($A$4^A14)*($B$4^B14) -> 0.000265314409 | D14: 186087894300 | E14: 1.467974647e-19 | F14: 3.89474826e-23 | H14: 0.9209532999 | I14: 1.351936096e-19
A15: 9 | B15: 91 | C15: =1*($A$4^A15)*($B$4^B15) -> 0.0003537525453 | D15: 1902231808400 | E15: 1.500596306e-18 | F15: 5.308397629e-22 | H15: 0.9236065321 | I15: 1.38596055e-18
A16: 10 | B16: 90 | C16: =1*($A$4^A16)*($B$4^B16) -> 0.0004716700605 | D16: 1.731030946e+13 | E16: 1.365542639e-17 | F16: 6.44085579e-21 | H16: 0.9262674081 | I16: 1.264857641e-17
A17: 11 | B17: 89 | C17: =1*($A$4^A17)*($B$4^B17) -> 0.0006288934139 | D17: 1.416298046e+14 | E17: 1.117262159e-16 | F17: 7.026388134e-20 | H17: 0.92893595 | I17: 1.037864985e-16
A18: 12 | B18: 88 | C18: =1*($A$4^A18)*($B$4^B18) -> 0.0008385245519 | D18: 1050421051106700 | E18: 8.286361012e-16 | F18: 6.948317155e-19 | H18: 0.9316121798 | I18: 7.719674846e-16
A19: 13 | B19: 87 | C19: =1*($A$4^A19)*($B$4^B19) -> 0.001118032736 | D19: 7110542499799198 | E19: 5.609228993e-15 | F19: 6.271301637e-18 | H19: 0.9342961198 | I19: 5.240680883e-15
A20: 14 | B20: 86 | C20: =1*($A$4^A20)*($B$4^B20) -> 0.001490710315 | D20: 4.418694268e+16 | E20: 3.48573516e-14 | F20: 5.196221357e-17 | H20: 0.9369877921 | I20: 3.266091291e-14
A21: 15 | B21: 85 | C21: =1*($A$4^A21)*($B$4^B21) -> 0.001987613753 | D21: 2.533384713e+17 | E21: 1.998488158e-13 | F21: 3.972222548e-16 | H21: 0.939687219 | I21: 1.87795378e-13
A22: 16 | B22: 84 | C22: =1*($A$4^A22)*($B$4^B22) -> 0.00265015167 | D22: 1.345860629e+18 | E22: 1.061696834e-12 | F22: 2.813657638e-15 | H22: 0.9423944229 | I22: 1.000537175e-12
A23: 17 | B23: 83 | C23: =1*($A$4^A23)*($B$4^B23) -> 0.00353353556 | D23: 6.650134873e+18 | E23: 5.246031416e-12 | F23: 1.853703856e-14 | H23: 0.9451094261 | I23: 4.958073741e-12
A24: 18 | B24: 82 | C24: =1*($A$4^A24)*($B$4^B24) -> 0.004711380747 | D24: 3.06645108e+19 | E24: 2.419003375e-11 | F24: 1.139684593e-13 | H24: 0.9478322512 | I24: 2.292809415e-11
A25: 19 | B25: 81 | C25: =1*($A$4^A25)*($B$4^B25) -> 0.006281840996 | D25: 1.323415729e+20 | E25: 1.04399093e-10 | F25: 6.558185025e-13 | H25: 0.9505629206 | I25: 9.923790677e-11
A26: 20 | B26: 80 | C26: =1*($A$4^A26)*($B$4^B26) -> 0.008375787995 | D26: 5.359833704e+20 | E26: 4.228163268e-10 | F26: 3.541419914e-12 | H26: 0.9533014569 | I26: 4.030714203e-10
A27: 21 | B27: 79 | C27: =1*($A$4^A27)*($B$4^B27) -> 0.01116771733 | D27: 2.041841411e+21 | E27: 1.610728864e-09 | F27: 1.798816464e-11 | H27: 0.9560478829 | I27: 1.53993392e-09
A28: 22 | B28: 78 | C28: =1*($A$4^A28)*($B$4^B28) -> 0.01489028977 | D28: 7.332066885e+21 | E28: 5.78398092e-09 | F28: 8.612515192e-11 | H28: 0.9588022213 | I28: 5.545693754e-09
A29: 23 | B29: 77 | C29: =1*($A$4^A29)*($B$4^B29) -> 0.01985371969 | D29: 2.486527031e+22 | E29: 1.961523964e-08 | F29: 3.894354695e-10 | H29: 0.9615644947 | I29: 1.8861318e-08
A30: 24 | B30: 76 | C30: =1*($A$4^A30)*($B$4^B30) -> 0.02647162626 | D30: 7.977607557e+22 | E30: 6.293222719e-08 | F30: 1.665918398e-09 | H30: 0.9643347262 | I30: 6.068773207e-08
A31: 25 | B31: 75 | C31: =1*($A$4^A31)*($B$4^B31) -> 0.03529550167 | D31: 2.425192697e+23 | E31: 1.913139706e-07 | F31: 6.752522571e-09 | H31: 0.9671129386 | I31: 1.850222164e-07
A32: 26 | B32: 74 | C32: =1*($A$4^A32)*($B$4^B32) -> 0.0470606689 | D32: 6.995748165e+23 | E32: 5.51867223e-07 | F32: 2.597124066e-08 | H32: 0.969899155 | I32: 5.352555533e-07
A33: 27 | B33: 73 | C33: =1*($A$4^A33)*($B$4^B33) -> 0.06274755853 | D33: 1.917353201e+24 | E33: 1.512524982e-06 | F33: 9.490724981e-08 | H33: 0.9726933983 | I33: 1.471223064e-06
A34: 28 | B34: 72 | C34: =1*($A$4^A34)*($B$4^B34) -> 0.08366341138 | D34: 4.998813702e+24 | E34: 3.943368702e-06 | F34: 3.299156779e-07 | H34: 0.9754956918 | I34: 3.84673918e-06
A35: 29 | B35: 71 | C35: =1*($A$4^A35)*($B$4^B35) -> 0.1115512152 | D35: 1.241084781e+25 | E35: 9.790432639e-06 | F35: 1.092134658e-06 | H35: 0.9783060585 | I35: 9.578039567e-06
A36: 30 | B36: 70 | C36: =1*($A$4^A36)*($B$4^B36) -> 0.1487349536 | D36: 2.937233982e+25 | E36: 2.317069058e-05 | F36: 3.446291587e-06 | H36: 0.9811245218 | I36: 2.273333272e-05
A37: 31 | B37: 69 | C37: =1*($A$4^A37)*($B$4^B37) -> 0.1983132714 | D37: 6.632463831e+25 | E37: 5.232091421e-05 | F37: 1.037593166e-05 | H37: 0.983951105 | I37: 5.148122136e-05
A38: 32 | B38: 68 | C38: =1*($A$4^A38)*($B$4^B38) -> 0.2644176952 | D38: 1.430125013e+26 | E38: 0.0001128169713 | F38: 2.983080352e-05 | H38: 0.9867858315 | I38: 0.0001113261888
A39: 33 | B39: 67 | C39: =1*($A$4^A39)*($B$4^B39) -> 0.352556927 | D39: 2.94692427e+26 | E39: 0.0002324713347 | F39: 8.195937938e-05 | H39: 0.9896287247 | I39: 0.0002300603105
A40: 34 | B40: 66 | C40: =1*($A$4^A40)*($B$4^B40) -> 0.4700759026 | D40: 5.807174297e+26 | E40: 0.0004581052773 | F40: 0.0002153442517 | H40: 0.9924798082 | I40: 0.0004546602377
A41: 35 | B41: 65 | C41: =1*($A$4^A41)*($B$4^B41) -> 0.6267678701 | D41: 1.095067153e+27 | E41: 0.0008638556657 | F41: 0.0005414369757 | H41: 0.9953391055 | I41: 0.0008598293257
A42: 36 | B42: 64 | C42: =1*($A$4^A42)*($B$4^B42) -> 0.8356904935 | D42: 1.977204582e+27 | E42: 0.001559739396 | F42: 0.001303459386 | H42: 0.9982066404 | I42: 0.001556942223
A43: 37 | B43: 63 | C43: =1*($A$4^A43)*($B$4^B43) -> 1.114253991 | D43: 3.420029547e+27 | E43: 0.002697927605 | F43: 0.003006176602 | H43: 1.001082437 | I43: 0.00270084794
A44: 38 | B44: 62 | C44: =1*($A$4^A44)*($B$4^B44) -> 1.485671988 | D44: 5.670048987e+27 | E44: 0.004472879976 | F44: 0.006645232488 | H44: 1.003966518 | I44: 0.004490621734
A45: 39 | B45: 61 | C45: =1*($A$4^A45)*($B$4^B45) -> 1.980895985 | D45: 9.01392403e+27 | E45: 0.00711073227 | F45: 0.014085621 | H45: 1.006858908 | I45: 0.007159504128
A46: 40 | B46: 60 | C46: =1*($A$4^A46)*($B$4^B46) -> 2.641194646 | D46: 1.374623415e+28 | E46: 0.01084386671 | F46: 0.0286407627 | H46: 1.009759631 | I46: 0.01094969885
A47: 41 | B47: 59 | C47: =1*($A$4^A47)*($B$4^B47) -> 3.521592862 | D47: 2.011644021e+28 | E47: 0.01586907324 | F47: 0.05588441503 | H47: 1.012668711 | I47: 0.01607011394
A48: 42 | B48: 58 | C48: =1*($A$4^A48)*($B$4^B48) -> 4.695457149 | D48: 2.825880887e+28 | E48: 0.02229226955 | F48: 0.1046723964 | H48: 1.015586172 | I48: 0.02263972069
A49: 43 | B49: 57 | C49: =1*($A$4^A49)*($B$4^B49) -> 6.260609532 | D49: 3.81165329e+28 | E49: 0.03006864264 | F49: 0.1882480307 | H49: 1.018512038 | I49: 0.03062527449
A50: 44 | B50: 56 | C50: =1*($A$4^A50)*($B$4^B50) -> 8.347479376 | D50: 4.93782358e+28 | E50: 0.03895255979 | F50: 0.3251556895 | H50: 1.021446333 | I50: 0.03978794935
A51: 45 | B51: 55 | C51: =1*($A$4^A51)*($B$4^B51) -> 11.1299725 | D51: 6.144847121e+28 | E51: 0.04847429663 | F51: 0.5395175884 | H51: 1.024389082 | I51: 0.0496565402
A52: 46 | B52: 54 | C52: =1*($A$4^A52)*($B$4^B52) -> 14.83996333 | D52: 7.347099819e+28 | E52: 0.05795839814 | F52: 0.8601005033 | H52: 1.027340308 | I52: 0.05954299862
A53: 47 | B53: 53 | C53: =1*($A$4^A53)*($B$4^B53) -> 19.78661778 | D53: 8.441348728e+28 | E53: 0.06659049999 | F53: 1.317600771 | H53: 1.030300038 | I53: 0.06860819464
A54: 48 | B54: 52 | C54: =1*($A$4^A54)*($B$4^B54) -> 26.38215704 | D54: 9.320655888e+28 | E54: 0.07352701041 | F54: 1.939801135 | H54: 1.033268294 | I54: 0.07597312857
A55: 49 | B55: 51 | C55: =1*($A$4^A55)*($B$4^B55) -> 35.17620938 | D55: 9.891308289e+28 | E55: 0.07802866411 | F55: 2.744752627 | H55: 1.036245101 | I55: 0.08085682092
A56: 50 | B56: 50 | C56: =1*($A$4^A56)*($B$4^B56) -> 46.90161251 | D56: 1.008913445e+29 | E56: 0.07958923739 | F56: 3.732863572 | H56: 1.039230485 | I56: 0.08271156173
A57: 51 | B57: 49 | C57: =1*($A$4^A57)*($B$4^B57) -> 62.53548335 | D57: 9.891308289e+28 | E57: 0.07802866411 | F57: 4.879560225 | H57: 1.042224469 | I57: 0.081323383
A58: 52 | B58: 48 | C58: =1*($A$4^A58)*($B$4^B58) -> 83.38064447 | D58: 9.320655888e+28 | E58: 0.07352701041 | F58: 6.130729514 | H58: 1.045227079 | I58: 0.07685242229
A59: 53 | B59: 47 | C59: =1*($A$4^A59)*($B$4^B59) -> 111.1741926 | D59: 8.441348728e+28 | E59: 0.06659049999 | F59: 7.403145073 | H59: 1.048238339 | I59: 0.0698027151
A60: 54 | B60: 46 | C60: =1*($A$4^A60)*($B$4^B60) -> 148.2322568 | D60: 7.347099819e+28 | E60: 0.05795839814 | F60: 8.591304159 | H60: 1.051258275 | I60: 0.06092924563
A61: 55 | B61: 45 | C61: =1*($A$4^A61)*($B$4^B61) -> 197.6430091 | D61: 6.144847121e+28 | E61: 0.04847429663 | F61: 9.58060585 | H61: 1.054286911 | I61: 0.05110581643
A62: 56 | B62: 44 | C62: =1*($A$4^A62)*($B$4^B62) -> 263.5240121 | D62: 4.93782358e+28 | E62: 0.03895255979 | F62: 10.26493484 | H62: 1.057324272 | I62: 0.04118548691
A63: 57 | B63: 43 | C63: =1*($A$4^A63)*($B$4^B63) -> 351.3653495 | D63: 3.81165329e+28 | E63: 0.03006864264 | F63: 10.56507913 | H63: 1.060370384 | I63: 0.03188389814
A64: 58 | B64: 42 | C64: =1*($A$4^A64)*($B$4^B64) -> 468.4871327 | D64: 2.825880887e+28 | E64: 0.02229226955 | F64: 10.44364144 | H64: 1.063425271 | I64: 0.02370616279
A65: 59 | B65: 41 | C65: =1*($A$4^A65)*($B$4^B65) -> 624.6495103 | D65: 2.011644021e+28 | E65: 0.01586907324 | F65: 9.912608826 | H65: 1.06648896 | I65: 0.01692419141
A66: 60 | B66: 40 | C66: =1*($A$4^A66)*($B$4^B66) -> 832.8660137 | D66: 1.374623415e+28 | E66: 0.01084386671 | F66: 9.031488041 | H66: 1.069561475 | I66: 0.01159818207
A67: 61 | B67: 39 | C67: =1*($A$4^A67)*($B$4^B67) -> 1110.488018 | D67: 9.01392403e+27 | E67: 0.00711073227 | F67: 7.896382987 | H67: 1.072642842 | I67: 0.007627276067
A68: 62 | B68: 38 | C68: =1*($A$4^A68)*($B$4^B68) -> 1480.650691 | D68: 5.670048987e+27 | E68: 0.004472879976 | F68: 6.622772828 | H68: 1.075733086 | I68: 0.004811624978
A69: 63 | B69: 37 | C69: =1*($A$4^A69)*($B$4^B69) -> 1974.200921 | D69: 3.420029547e+27 | E69: 0.002697927605 | F69: 5.326251163 | H69: 1.078832233 | I69: 0.002910611261
A70: 64 | B70: 36 | C70: =1*($A$4^A70)*($B$4^B70) -> 2632.267895 | D70: 1.977204582e+27 | E70: 0.001559739396 | F70: 4.105651938 | H70: 1.081940308 | I70: 0.001687544923
A71: 65 | B71: =$A$2-A71 -> 35 | C71: =1*($A$4^A71)*($B$4^B71) -> 3509.690527 | D71: =COMBIN($A$2,A71) -> 1.095067153e+27 | E71: =D71/$D$4 -> 0.0008638556657 | F71: =C71*E71 -> 3.031866047 | H71: =C71^(1/$A$2) -> 1.085057338 | I71: =H71*E71 -> 0.0009373329289
A72: 66 | B72: 34 | C72: =1*($A$4^A72)*($B$4^B72) -> 4679.587369 | D72: 5.807174297e+26 | E72: 0.0004581052773 | F72: 2.143743669 | H72: 1.088183348 | I72: 0.0004985025341
A73: 67 | B73: 33 | C73: =1*($A$4^A73)*($B$4^B73) -> 6239.449826 | D73: 2.94692427e+26 | E73: 0.0002324713347 | F73: 1.450493229 | H73: 1.091318363 | I73: 0.0002537002365
A74: 68 | B74: 32 | C74: =1*($A$4^A74)*($B$4^B74) -> 8319.266434 | D74: 1.430125013e+26 | E74: 0.0001128169713 | F74: 0.9385544423 | H74: 1.094462411 | I74: 0.0001234739343
A75: 69 | B75: 31 | C75: =1*($A$4^A75)*($B$4^B75) -> 11092.35525 | D75: 6.632463831e+25 | E75: 5.232091421e-05 | F75: 0.5803621672 | H75: 1.097615516 | I75: 5.742824726e-05
A76: 70 | B76: 30 | C76: =1*($A$4^A76)*($B$4^B76) -> 14789.80699 | D76: 2.937233982e+25 | E76: 2.317069058e-05 | F76: 0.3426900416 | H76: 1.100777706 | I76: 2.550577961e-05
A77: 71 | B77: 29 | C77: =1*($A$4^A77)*($B$4^B77) -> 19719.74266 | D77: 1.241084781e+25 | E77: 9.790432639e-06 | F77: 0.1930648122 | H77: 1.103949005 | I77: 1.080813837e-05
A78: 72 | B78: 28 | C78: =1*($A$4^A78)*($B$4^B78) -> 26292.99021 | D78: 4.998813702e+24 | E78: 3.943368702e-06 | F78: 0.1036829547 | H78: 1.107129441 | I78: 4.365819587e-06
A79: 73 | B79: 27 | C79: =1*($A$4^A79)*($B$4^B79) -> 35057.32028 | D79: 1.917353201e+24 | E79: 1.512524982e-06 | F79: 0.05302507271 | H79: 1.11031904 | I79: 1.679385285e-06
A80: 74 | B80: 26 | C80: =1*($A$4^A80)*($B$4^B80) -> 46743.09371 | D80: 6.995748165e+23 | E80: 5.51867223e-07 | F80: 0.02579598132 | H80: 1.113517828 | I80: 6.145139913e-07
A81: 75 | B81: 25 | C81: =1*($A$4^A81)*($B$4^B81) -> 62324.12495 | D81: 2.425192697e+23 | E81: 1.913139706e-07 | F81: 0.01192347581 | H81: 1.116725831 | I81: 2.136452528e-07
A82: 76 | B82: 24 | C82: =1*($A$4^A82)*($B$4^B82) -> 83098.83326 | D82: 7.977607557e+22 | E82: 6.293222719e-08 | F82: 0.005229594654 | H82: 1.119943076 | I82: 7.048051212e-08
A83: 77 | B83: 23 | C83: =1*($A$4^A83)*($B$4^B83) -> 110798.4443 | D83: 2.486527031e+22 | E83: 1.961523964e-08 | F83: 0.002173338038 | H83: 1.123169591 | I83: 2.203124068e-08
A84: 78 | B84: 22 | C84: =1*($A$4^A84)*($B$4^B84) -> 147731.2591 | D84: 7.332066885e+21 | E84: 5.78398092e-09 | F84: 0.0008544747841 | H84: 1.1264054 | I84: 6.515107345e-09
A85: 79 | B85: 21 | C85: =1*($A$4^A85)*($B$4^B85) -> 196975.0122 | D85: 2.041841411e+21 | E85: 1.610728864e-09 | F85: 0.0003172733376 | H85: 1.129650532 | I85: 1.819560719e-09
A86: 80 | B86: 20 | C86: =1*($A$4^A86)*($B$4^B86) -> 262633.3496 | D86: 5.359833704e+20 | E86: 4.228163268e-10 | F86: 0.0001110456681 | H86: 1.132905014 | I86: 4.790107364e-10
A87: 81 | B87: 19 | C87: =1*($A$4^A87)*($B$4^B87) -> 350177.7994 | D87: 1.323415729e+20 | E87: 1.04399093e-10 | F87: 3.655824466e-05 | H87: 1.136168871 | I87: 1.186149996e-10
A88: 82 | B88: 18 | C88: =1*($A$4^A88)*($B$4^B88) -> 466903.7326 | D88: 3.06645108e+19 | E88: 2.419003375e-11 | F88: 1.129441705e-05 | H88: 1.139442131 | I88: 2.75631436e-11
A89: 83 | B89: 17 | C89: =1*($A$4^A89)*($B$4^B89) -> 622538.3101 | D89: 6.650134873e+18 | E89: 5.246031416e-12 | F89: 3.265855532e-06 | H89: 1.142724821 | I89: 5.994770312e-12
A90: 84 | B90: 16 | C90: =1*($A$4^A90)*($B$4^B90) -> 830051.0801 | D90: 1.345860629e+18 | E90: 1.061696834e-12 | F90: 8.812626039e-07 | H90: 1.146016969 | I90: 1.216722588e-12
A91: 85 | B91: 15 | C91: =1*($A$4^A91)*($B$4^B91) -> 1106734.773 | D91: 2.533384713e+17 | E91: 1.998488158e-13 | F91: 2.211796339e-07 | H91: 1.149318601 | I91: 2.296899614e-13
A92: 86 | B92: 14 | C92: =1*($A$4^A92)*($B$4^B92) -> 1475646.365 | D92: 4.418694268e+16 | E92: 3.48573516e-14 | F92: 5.143712417e-08 | H92: 1.152629745 | I92: 4.017762029e-14
A93: 87 | B93: 13 | C93: =1*($A$4^A93)*($B$4^B93) -> 1967528.486 | D93: 7110542499799198 | E93: 5.609228993e-15 | F93: 1.103631783e-08 | H93: 1.155950428 | I93: 6.483990658e-15
A94: 88 | B94: 12 | C94: =1*($A$4^A94)*($B$4^B94) -> 2623371.315 | D94: 1050421051106700 | E94: 8.286361012e-16 | F94: 2.173820178e-09 | H94: 1.159280679 | I94: 9.606218217e-16
A95: 89 | B95: 11 | C95: =1*($A$4^A95)*($B$4^B95) -> 3497828.42 | D95: 1.416298046e+14 | E95: 1.117262159e-16 | F95: 3.907991332e-10 | H95: 1.162620523 | I95: 1.298951916e-16
A96: 90 | B96: 10 | C96: =1*($A$4^A96)*($B$4^B96) -> 4663771.226 | D96: 1.731030946e+13 | E96: 1.365542639e-17 | F96: 6.368578467e-11 | H96: 1.165969989 | I96: 1.592181736e-17
A97: 91 | B97: 9 | C97: =1*($A$4^A97)*($B$4^B97) -> 6218361.635 | D97: 1902231808400 | E97: 1.500596306e-18 | F97: 9.331250501e-12 | H97: 1.169329106 | I97: 1.754690937e-18
A98: 92 | B98: 8 | C98: =1*($A$4^A98)*($B$4^B98) -> 8291148.847 | D98: 186087894300 | E98: 1.467974647e-19 | F98: 1.217119631e-12 | H98: 1.172697899 | I98: 1.721490785e-19
A99: 93 | B99: 7 | C99: =1*($A$4^A99)*($B$4^B99) -> 11054865.13 | D99: 1.60075608e+10 | E99: 1.26277389e-20 | F99: 1.395979505e-13 | H99: 1.176076398 | I99: 1.485118569e-20
A100: 94 | B100: 6 | C100: =1*($A$4^A100)*($B$4^B100) -> 14739820.17 | D100: 1192052400 | E100: 9.403635353e-22 | F100: 1.386078941e-14 | H100: 1.17946463 | I100: 1.10912553e-21
A101: 95 | B101: 5 | C101: =1*($A$4^A101)*($B$4^B101) -> 19653093.56 | D101: 75287520 | E101: 5.939138118e-23 | F101: 1.167224371e-15 | H101: 1.182862624 | I101: 7.025184499e-23
A102: 96 | B102: 4 | C102: =1*($A$4^A102)*($B$4^B102) -> 26204124.75 | D102: 3921225 | E102: 3.093301103e-24 | F102: 8.1057248e-17 | H102: 1.186270407 | I102: 3.669491559e-24
A103: 97 | B103: 3 | C103: =1*($A$4^A103)*($B$4^B103) -> 34938833 | D103: 161700 | E103: 1.275588084e-25 | F103: 4.456755904e-18 | H103: 1.189688008 | I103: 1.517551846e-25
A104: 98 | B104: 2 | C104: =1*($A$4^A104)*($B$4^B104) -> 46585110.67 | D104: 4950 | E104: 3.904861481e-27 | F104: 1.819084042e-19 | H104: 1.193115455 | I104: 4.658950582e-27
A105: 99 | B105: 1 | C105: =1*($A$4^A105)*($B$4^B105) -> 62113480.89 | D105: 100 | E105: 7.888609052e-29 | F105: 4.899889676e-21 | H105: 1.196552776 | I105: 9.43913706e-29
A106: 100 | B106: 0 | C106: =1*($A$4^A106)*($B$4^B106) -> 82817974.52 | D106: 1 | E106: 7.888609052e-31 | F106: 6.533186235e-23 | H106: 1.2 | I106: 9.466330863e-31

Sheet 10
A1: время (лет) (N) | F1: Доходность матожидания финансового результата через N лет | I1: Среднее значение доходности всех совершенных итераций
A2: 10 | D2: корень степени N | F2: =F4^(1/$A$2) -> 1.05 | H2: =H3^(1/$A$2) -> 1.043237202
C3: произведение | H3: =PRODUCT(H6:H16) -> 1.526970529
A4: 1.2 | B4: 0.9 | C4: сумма | D4: =SUM(D6:D16) -> 1024 | F4: =SUM(F6:F16) -> 1.628894627 | I4: =SUM(I6:I16) -> 1.0403061
A5: Число случаев прироста на 20% | B5: Число случаев прироста на -10% | C5: Результат через N лет ( R) | D5: Случаев рез-та через 100 лет | E5: Вероятность такого исхода (P) | F5: R*P | H5: Средняя доходность за N лет в ЭТОМ исходе (i) | I5: P*i
A6: 0 | B6: =$A$2-A6 -> 10 | C6: =1*($A$4^A6)*($B$4^B6) -> 0.3486784401 | D6: =COMBIN($A$2,A6) -> 1 | E6: =D6/$D$4 -> 0.0009765625 | F6: =C6*E6 -> 0.0003405062892 | H6: =C6^(1/$A$2) -> 0.9 | I6: =H6*E6 -> 0.00087890625
A7: 1 | B7: =$A$2-A7 -> 9 | C7: =1*($A$4^A7)*($B$4^B7) -> 0.4649045868 | D7: =COMBIN($A$2,A7) -> 10 | E7: =D7/$D$4 -> 0.009765625 | F7: =C7*E7 -> 0.004540083855 | H7: =C7^(1/$A$2) -> 0.9262674081 | I7: =H7*E7 -> 0.009045580157
A8: 2 | B8: 8 | C8: =1*($A$4^A8)*($B$4^B8) -> 0.6198727824 | D8: 45 | E8: 0.0439453125 | F8: 0.02724050313 | H8: 0.9533014569 | I8: 0.04189313043
A9: 3 | B9: 7 | C9: =1*($A$4^A9)*($B$4^B9) -> 0.8264970432 | D9: 120 | E9: 0.1171875 | F9: 0.09685512225 | H9: 0.9811245218 | I9: 0.1149755299
A10: 4 | B10: 6 | C10: =1*($A$4^A10)*($B$4^B10) -> 1.101996058 | D10: 210 | E10: 0.205078125 | F10: 0.2259952853 | H10: 1.009759631 | I10: 0.2070796118
A11: 5 | B11: 5 | C11: =1*($A$4^A11)*($B$4^B11) -> 1.469328077 | D11: 252 | E11: 0.24609375 | F11: 0.3615924564 | H11: 1.039230485 | I11: 0.2557481271
A12: 6 | B12: 4 | C12: =1*($A$4^A12)*($B$4^B12) -> 1.959104102 | D12: 210 | E12: 0.205078125 | F12: 0.401769396 | H12: 1.069561475 | I12: 0.2193436618
A13: 7 | B13: 3 | C13: =1*($A$4^A13)*($B$4^B13) -> 2.612138803 | D13: 120 | E13: 0.1171875 | F13: 0.306110016 | H13: 1.100777706 | I13: 0.1289973874
A14: 8 | B14: 2 | C14: =1*($A$4^A14)*($B$4^B14) -> 3.482851738 | D14: 45 | E14: 0.0439453125 | F14: 0.153055008 | H14: 1.132905014 | I14: 0.04978586485
A15: 9 | B15: 1 | C15: =1*($A$4^A15)*($B$4^B15) -> 4.643802317 | D15: 10 | E15: 0.009765625 | F15: 0.045349632 | H15: 1.165969989 | I15: 0.01138642568
A16: 10 | B16: 0 | C16: =1*($A$4^A16)*($B$4^B16) -> 6.191736422 | D16: 1 | E16: 0.0009765625 | F16: 0.0060466176 | H16: 1.2 | I16: 0.001171875
